lending/lending_fUSD_20260110
["ID","MTS","AMOUNT","RATE_DAILY","PERIOD"]
[401213841,1768049440264,-193.0,0.00016772,2]
[401213842,1768049440273,-300.0,0.00016772,2]
[401213843,1768049440283,-600.0,0.00016772,2]
[401213844,1768049440293,-289.92966969,0.00016772,2]
[401213845,1768049440303,-194.72792766,0.0001678,2]
[401213846,1768049440313,-233.0,0.0001678,2]
[401213847,1768049440323,-260.75602621,0.00016782,2]
[401213848,1768049440334,-252.68743637,0.00016782,2]
[401213849,1768049440343,-188.04348929,0.00016782,2]
[401213850,1768049440352,-226.31905987,0.00016782,2]
[401213851,1768049440363,-213.87423394,0.00016782,2]
[401213852,1768049440372,-177.21892515,0.00016782,2]
[401213853,1768049440382,-150.0,0.00016786,2]
[401213854,1768049440392,-536.89418062,0.00016789,2]
[401213855,1768049440401,-260.75602621,0.000168,2]
[401213856,1768049440411,-252.68743637,0.000168,2]
[401213857,1768049440421,-188.04348929,0.000168,2]
[401213858,1768049440430,-226.31905987,0.000168,2]
[401213859,1768049440440,-213.87423394,0.000168,2]
[401213860,1768049440450,-177.21892515,0.000168,2]
[401213861,1768049440460,-150.0,0.000168,2]
[401213862,1768049440469,-150.0,0.000168,2]
[401213863,1768049440482,-238.82,0.000168,2]
[401213864,1768049440492,-1000.0,0.00016811,2]
[401213865,1768049440501,-1343.26,0.00016816,2]
[401213866,1768049440511,-260.75602621,0.00016818,2]
[401213867,1768049440522,-252.68743637,0.00016818,2]
[401213868,1768049440532,-188.04348929,0.00016818,2]
[401213869,1768049440542,-226.31905987,0.00016818,2]
[401213870,1768049440552,-213.87423394,0.00016818,2]
[401213871,1768049440562,-177.21892515,0.00016818,2]
[401213872,1768049440572,-150.0,0.00016823,2]
[401213873,1768049440581,-1000.0,0.00016825,2]
[401213874,1768049440591,-150.0,0.00016828,2]
[401213875,1768049440600,-150.0,0.00016835,2]
[401213876,1768049440610,-260.75602621,0.00016836,2]
[401213877,1768049440621,-252.68743637,0.00016836,2]
[401213878,1768049440634,-188.04348929,0.00016836,2]
[401213879,1768049440648,-226.31905987,0.00016836,2]
[401213880,1768049440659,-213.87423394,0.00016836,2]
[401213881,1768049440670,-177.21892515,0.00016836,2]
[401213882,1768049440691,-233.0,0.00016837,2]
[401213883,1768049440708,-151.0,0.00016837,2]
[401213884,1768049440718,-156.587,0.00016837,2]
[401213885,1768049440729,-162.380719,0.00016837,2]
[401213886,1768049440738,-1667.60757895,0.00016837,2]
[401213887,1768049440747,-155.41089514,0.00016837,2]
[401213888,1768049440758,-181.08010149,0.00016837,2]
[401213889,1768049440780,-250.0,0.00016837,2]
[401213890,1768049440799,-250.0,0.00016837,2]
[401213891,1768049440814,-8260.13072239,0.00016837,2]
[401213892,1768049440826,-1000.0,0.00016837,2]
[401213893,1768049440837,-250.0,0.00016837,2]
[401213894,1768049440848,-998.0,0.00016837,2]
[401213895,1768049440859,-250.0,0.00016837,2]
[401213896,1768049440869,-250.0,0.00016837,2]
[401213897,1768049440880,-250.0,0.00016837,2]
[401213898,1768049440891,-1000.0,0.00016837,2]
[401213899,1768049440901,-250.0,0.00016837,2]
[401213900,1768049440912,-250.0,0.00016837,2]
[401213901,1768049440922,-1000.0,0.00016837,2]
[401213902,1768049440932,-250.0,0.00016837,2]
[401213903,1768049440943,-250.0,0.00016837,2]
[401213904,1768049440953,-1000.0,0.00016837,2]
[401213905,1768049440962,-250.0,0.00016837,2]
[401213906,1768049440973,-1000.0,0.00016837,2]
[401213907,1768049440982,-337.85219148,0.00016837,2]
[401213908,1768049440992,-250.0,0.00016837,2]
[401213909,1768049441002,-1000.0,0.00016837,2]
[401213910,1768049441011,-250.0,0.00016837,2]
[401213911,1768049441021,-1000.0,0.00016837,2]
[401213912,1768049441031,-250.0,0.00016837,2]
[401213913,1768049441041,-151.0,0.00016837,2]
[401213914,1768049441050,-1000.0,0.00016837,2]
[401213915,1768049441060,-250.0,0.00016837,2]
[401213916,1768049441069,-1000.0,0.00016837,2]
[401213917,1768049441079,-250.0,0.00016837,2]
[401213918,1768049441088,-1000.0,0.00016837,2]
[401213919,1768049441098,-250.0,0.00016837,2]
[401213920,1768049441107,-1000.0,0.00016837,2]
[401213921,1768049441117,-620.0,0.00016837,2]
[401213922,1768049441126,-250.0,0.00016837,2]
[401213923,1768049441136,-1000.0,0.00016837,2]
[401213924,1768049441146,-250.0,0.00016837,2]
[401213925,1768049441155,-1000.0,0.00016837,2]
[401213926,1768049441165,-250.0,0.00016837,2]
[401213927,1768049441175,-1000.0,0.00016837,2]
[401213928,1768049441185,-1000.0,0.00016837,2]
[401213929,1768049441194,-623.58710448,0.00016837,2]
[401213930,1768049441204,-151.0,0.00016837,2]
[401213931,1768049441213,-151.0,0.00016837,2]
[401213932,1768049441223,-157.48868544,0.00016837,2]
[401213933,1768049441232,-496.47127164,0.00016837,2]
[401213934,1768049441243,-500.0,0.00016837,2]
[401213935,1768049441253,-578.20924308,0.00016837,2]
[401213936,1768049441263,-500.0,0.00016837,2]
[401213937,1768049441272,-500.0,0.00016837,2]
[401213938,1768049441282,-500.0,0.00016837,2]
[401213939,1768049441292,-500.0,0.00016837,2]
[401213940,1768049441302,-500.0,0.00016837,2]
[401213941,1768049441311,-500.0,0.00016837,2]
[401213942,1768049441321,-250.0,0.00016837,2]
[401213943,1768049441331,-500.0,0.00016837,2]
[401213944,1768049441341,-500.0,0.00016837,2]
[401213945,1768049441350,-250.0,0.00016837,2]
[401213946,1768049441359,-500.0,0.00016837,2]
[401213947,1768049441368,-250.0,0.00016837,2]
[401213948,1768049441378,-500.0,0.00016837,2]
[401213949,1768049441387,-250.0,0.00016837,2]
[401213950,1768049441397,-500.0,0.00016837,2]
[401213951,1768049441407,-250.0,0.00016837,2]
[401213952,1768049441417,-2000.0,0.00016837,2]
[401213953,1768049441427,-500.0,0.00016837,2]
[401213954,1768049441436,-250.0,0.00016837,2]
[401213955,1768049441446,-250.0,0.00016837,2]
[401213956,1768049441455,-250.0,0.00016837,2]
[401213957,1768049441464,-2000.0,0.00016837,2]
[401213958,1768049441473,-500.0,0.00016837,2]
[401213959,1768049441489,-322.6107,0.00016837,2]
[401213960,1768049441499,-250.0,0.00016837,2]
[401213961,1768049441508,-250.0,0.00016837,2]
[401213962,1768049441519,-250.0,0.00016837,2]
[401213963,1768049441528,-2000.0,0.00016837,2]
[401213964,1768049441539,-500.0,0.00016837,2]
[401213965,1768049441548,-500.0,0.00016837,2]
[401213966,1768049441561,-250.0,0.00016837,2]
[401213967,1768049441571,-250.0,0.00016837,2]
[401213968,1768049441581,-250.0,0.00016837,2]
[401213969,1768049441591,-2000.0,0.00016837,2]
[401213970,1768049441601,-500.0,0.00016837,2]
[401213971,1768049441611,-500.0,0.00016837,2]
[401213972,1768049441621,-250.0,0.00016837,2]
[401213973,1768049441631,-250.0,0.00016837,2]
[401213974,1768049441641,-250.0,0.00016837,2]
[401213975,1768049441650,-2000.0,0.00016837,2]
[401213976,1768049441660,-500.0,0.00016837,2]
[401213977,1768049441670,-500.0,0.00016837,2]
[401213978,1768049441679,-250.0,0.00016837,2]
[401213979,1768049441688,-250.0,0.00016837,2]
[401213980,1768049441698,-250.0,0.00016837,2]
[401213981,1768049441707,-2000.0,0.00016837,2]
[401213982,1768049441716,-500.0,0.00016837,2]
[401213983,1768049441726,-250.0,0.00016837,2]
[401213984,1768049441736,-250.0,0.00016837,2]
[401213985,1768049441745,-500.0,0.00016837,2]
[401213986,1768049441754,-2000.0,0.00016837,2]
[401213987,1768049441763,-250.0,0.00016837,2]
[401213988,1768049441771,-500.0,0.00016837,2]
[401213989,1768049441780,-250.0,0.00016837,2]
[401213990,1768049441790,-500.0,0.00016837,2]
[401213991,1768049441800,-2000.0,0.00016837,2]
[401213992,1768049441810,-250.0,0.00016837,2]
[401213993,1768049441820,-250.0,0.00016837,2]
[401213994,1768049441829,-500.0,0.00016837,2]
[401213995,1768049441839,-250.0,0.00016837,2]
[401213996,1768049441848,-500.0,0.00016837,2]
[401213997,1768049441858,-2000.0,0.00016837,2]
[401213998,1768049441868,-250.0,0.00016837,2]
[401213999,1768049441877,-250.0,0.00016837,2]
[401214000,1768049441887,-250.0,0.00016837,2]
[401214001,1768049441897,-500.0,0.00016837,2]
[401214002,1768049441906,-250.0,0.00016837,2]
[401214003,1768049441916,-250.0,0.00016837,2]
[401214004,1768049441926,-2000.0,0.00016837,2]
[401214005,1768049441937,-250.0,0.00016837,2]
[401214006,1768049441947,-500.0,0.00016837,2]
[401214007,1768049441957,-250.0,0.00016837,2]
[401214008,1768049441967,-250.0,0.00016837,2]
[401214009,1768049441976,-2000.0,0.00016837,2]
[401214010,1768049441986,-250.0,0.00016837,2]
[401214011,1768049441996,-500.0,0.00016837,2]
[401214012,1768049442006,-250.0,0.00016837,2]
[401214013,1768049442016,-2000.0,0.00016837,2]
[401214014,1768049442026,-250.0,0.00016837,2]
[401214015,1768049442035,-500.0,0.00016837,2]
[401214016,1768049442045,-250.0,0.00016837,2]
[401214017,1768049442055,-2000.0,0.00016837,2]
[401214018,1768049442064,-250.0,0.00016837,2]
[401214019,1768049442075,-250.0,0.00016837,2]
[401214020,1768049442085,-2000.0,0.00016837,2]
[401214021,1768049442095,-250.0,0.00016837,2]
[401214022,1768049442105,-250.0,0.00016837,2]
[401214023,1768049442115,-2000.0,0.00016837,2]
[401214024,1768049442124,-250.0,0.00016837,2]
[401214025,1768049442133,-250.0,0.00016837,2]
[401214026,1768049442143,-151.0,0.00016837,2]
[401214027,1768049442153,-181.08010149,0.00016837,2]
[401214028,1768049442162,-250.0,0.00016837,2]
[401214029,1768049442171,-151.0,0.00016837,2]
[401214030,1768049442181,-250.0,0.00016837,2]
[401214031,1768049442190,-250.0,0.00016837,2]
[401214032,1768049442199,-250.0,0.00016837,2]
[401214033,1768049442208,-250.0,0.00016837,2]
[401214034,1768049442217,-250.0,0.00016837,2]
[401214035,1768049442227,-250.0,0.00016837,2]
[401214036,1768049442237,-250.0,0.00016837,2]
[401214037,1768049442246,-250.0,0.00016837,2]
[401214038,1768049442256,-188.43217133,0.00016837,2]
[401214039,1768049442266,-260.75602621,0.00016855,2]
[401214040,1768049442276,-252.68743637,0.00016855,2]
[401214041,1768049442285,-188.04348929,0.00016855,2]
[401214042,1768049442294,-226.31905987,0.00016855,2]
[401214043,1768049442304,-213.87423394,0.00016855,2]
[401214044,1768049442313,-177.21892515,0.00016855,2]
[401214045,1768049442322,-172.27,0.00016863,2]
[401214046,1768049442332,-150.0,0.0001687,2]
[401214047,1768049442342,-150.0,0.00016871,2]
[401214048,1768049442352,-260.75602621,0.00016873,2]
[401214049,1768049442362,-252.68743637,0.00016873,2]
[401214050,1768049442371,-188.04348929,0.00016873,2]
[401214051,1768049442381,-226.31905987,0.00016873,2]
[401214052,1768049442391,-213.87423394,0.00016873,2]
[401214053,1768049442401,-177.21892515,0.00016873,2]
[401214054,1768049442410,-1000.0,0.00016874,2]
[401214055,1768049442419,-150.0,0.00016875,2]
[401214056,1768049442429,-150.0,0.00016875,2]
[401214057,1768049442438,-260.75602621,0.00016891,2]
[401214058,1768049442448,-252.68743637,0.00016891,2]
[401214059,1768049442457,-188.04348929,0.00016891,2]
[401214060,1768049442467,-226.31905987,0.00016891,2]
[401214061,1768049442480,-213.87423394,0.00016891,2]
[401214062,1768049442491,-177.21892515,0.00016891,2]
[401214063,1768049442501,-8565.75555911,0.00016892,2]
[401214064,1768049442510,-150.0,0.00016892,2]
[401214065,1768049442520,-233.0,0.000169,2]
[401214066,1768049442530,-150.0,0.00016906,2]
[401214067,1768049442540,-260.75602621,0.00016909,2]
[401214068,1768049442551,-252.68743637,0.00016909,2]
[401214069,1768049442561,-188.04348929,0.00016909,2]
[401214070,1768049442571,-226.31905987,0.00016909,2]
[401214071,1768049442581,-213.87423394,0.00016909,2]
[401214072,1768049442591,-177.21892515,0.00016909,2]
[401214073,1768049442603,-150.0,0.00016912,2]
[401214074,1768049442613,-1000.0,0.00016918,2]
[401214075,1768049442623,-150.0,0.0001692,2]
[401214076,1768049442633,-150.0,0.0001692,2]
[401214077,1768049442643,-233.0,0.00016926,2]
[401214078,1768049442652,-500.0,0.00016927,2]
[401214079,1768049442664,-260.75602621,0.00016927,2]
[401214080,1768049442675,-252.68743637,0.00016927,2]
[401214081,1768049442685,-188.04348929,0.00016927,2]
[401214082,1768049442695,-226.31905987,0.00016927,2]
[401214083,1768049442705,-213.87423394,0.00016927,2]
[401214084,1768049442715,-177.21892515,0.00016927,2]
[401214085,1768049442724,-150.0,0.00016941,2]
[401214086,1768049442734,-1000.0,0.00016945,2]
[401214087,1768049442744,-260.75602621,0.00016945,2]
[401214088,1768049442754,-252.68743637,0.00016945,2]
[401214089,1768049442763,-188.04348929,0.00016945,2]
[401214090,1768049442773,-226.31905987,0.00016945,2]
[401214091,1768049442782,-213.87423394,0.00016945,2]
[401214093,1768049442791,-177.21892515,0.00016945,2]
[401214095,1768049442801,-8882.6885148,0.00016947,2]
[401214096,1768049442811,-150.0,0.00016953,2]
[401214097,1768049442820,-234.22420722,0.00016956,2]
[401214098,1768049442830,-5638.05163534,0.00016958,2]
[401214099,1768049442839,-150.0,0.00016962,2]
[401214100,1768049442849,-260.75602621,0.00016964,2]
[401214101,1768049442859,-252.68743637,0.00016964,2]
[401214102,1768049442869,-188.04348929,0.00016964,2]
[401214103,1768049442879,-226.31905987,0.00016964,2]
[401214104,1768049442888,-213.87423394,0.00016964,2]
[401214105,1768049442898,-177.21892515,0.00016964,2]
[401214106,1768049442907,-1000.0,0.00016972,2]
[401214107,1768049442917,-150.0,0.00016976,2]
[401214108,1768049442926,-1000.0,0.00016981,2]
[401214109,1768049442936,-260.75602621,0.00016982,2]
[401214110,1768049442946,-252.68743637,0.00016982,2]
[401214111,1768049442957,-188.04348929,0.00016982,2]
[401214112,1768049442967,-226.31905987,0.00016982,2]
[401214113,1768049442977,-213.87423394,0.00016982,2]
[401214114,1768049442988,-177.21892515,0.00016982,2]
[401214115,1768049442998,-1000.0,0.00016982,2]
[401214116,1768049443009,-600.0,0.00016986,2]
[401214117,1768049443019,-150.0,0.00016995,2]
[401214118,1768049443029,-260.75602621,0.00017,2]
[401214119,1768049443040,-252.68743637,0.00017,2]
[401214120,1768049443050,-188.04348929,0.00017,2]
[401214121,1768049443061,-226.31905987,0.00017,2]
[401214122,1768049443071,-213.87423394,0.00017,2]
[401214123,1768049443081,-177.21892515,0.00017,2]
[401214124,1768049443092,-250.0,0.00017,2]
[401214125,1768049443102,-210.20353926,0.00017,2]
[401214126,1768049443112,-805.55508344,0.00017002,2]
[401214127,1768049443122,-150.0,0.00017012,2]
[401214128,1768049443131,-260.75602621,0.00017018,2]
[401214129,1768049443141,-252.68743637,0.00017018,2]
[401214130,1768049443151,-188.04348929,0.00017018,2]
[401214131,1768049443161,-226.31905987,0.00017018,2]
[401214132,1768049443171,-213.87423394,0.00017018,2]
[401214133,1768049443181,-177.21892515,0.00017018,2]
[401214134,1768049443191,-150.0,0.00017031,2]
[401214135,1768049443200,-154.50124005,0.00017032,2]
[401214136,1768049443210,-260.75602621,0.00017036,2]
[401214137,1768049443220,-252.68743637,0.00017036,2]
[401214138,1768049443230,-188.04348929,0.00017036,2]
[401214139,1768049443240,-226.31905987,0.00017036,2]
[401214140,1768049443251,-213.87423394,0.00017036,2]
[401214141,1768049443261,-177.21892515,0.00017036,2]
[401214142,1768049443271,-150.0,0.00017037,2]
[401214143,1768049443281,-150.0,0.0001704,2]
[401214144,1768049443291,-150.0,0.00017047,2]
[401214145,1768049443301,-260.75602621,0.00017055,2]
[401214146,1768049443310,-252.68743637,0.00017055,2]
[401214147,1768049443321,-188.04348929,0.00017055,2]
[401214148,1768049443331,-226.31905987,0.00017055,2]
[401214149,1768049443343,-213.87423394,0.00017055,2]
[401214150,1768049443354,-177.21892515,0.00017055,2]
[401214151,1768049443364,-200.0,0.00017055,2]
[401214152,1768049443374,-1000.0,0.00017058,2]
[401214153,1768049443385,-1000.0,0.00017059,2]
[401214154,1768049443395,-1000.0,0.00017071,2]
[401214155,1768049443406,-276.645,0.00017072,2]
[401214156,1768049443416,-260.75602621,0.00017073,2]
[401214159,1768049443427,-252.68743637,0.00017073,2]
[401214160,1768049443437,-188.04348929,0.00017073,2]
[401214161,1768049443447,-226.31905987,0.00017073,2]
[401214162,1768049443457,-213.87423394,0.00017073,2]
[401214163,1768049443467,-177.21892515,0.00017073,2]
[401214164,1768049443478,-1000.0,0.00017073,2]
[401214165,1768049443491,-150.0,0.00017079,2]
[401214166,1768049443501,-150.0,0.00017082,2]
[401214167,1768049443513,-1343.26,0.0001709,2]
[401214168,1768049443524,-260.75602621,0.00017091,2]
[401214169,1768049443535,-252.68743637,0.00017091,2]
[401214170,1768049443546,-188.04348929,0.00017091,2]
[401214171,1768049443556,-226.31905987,0.00017091,2]
[401214172,1768049443567,-213.87423394,0.00017091,2]
[401214173,1768049443577,-177.21892515,0.00017091,2]
[401214174,1768049443588,-233.0,0.00017093,2]
[401214175,1768049443599,-150.0,0.000171,2]
[401214176,1768049443609,-150.0,0.000171,2]
[401214177,1768049443620,-150.0,0.000171,2]
[401214178,1768049443630,-150.0,0.000171,2]
[401214179,1768049443641,-150.0,0.000171,2]
[401214180,1768049443651,-1069.8949683,0.000171,2]
[401214181,1768049443662,-260.75602621,0.00017109,2]
[401214182,1768049443674,-252.68743637,0.00017109,2]
[401214183,1768049443686,-188.04348929,0.00017109,2]
[401214184,1768049443697,-226.31905987,0.00017109,2]
[401214185,1768049443707,-213.87423394,0.00017109,2]
[401214186,1768049443717,-177.21892515,0.00017109,2]
[401214187,1768049443727,-1000.0,0.00017112,2]
[401214188,1768049443737,-150.0,0.00017118,2]
[401214189,1768049443747,-150.0,0.00017121,2]
[401214190,1768049443757,-260.75602621,0.00017127,2]
[401214191,1768049443767,-252.68743637,0.00017127,2]
[401214192,1768049443778,-188.04348929,0.00017127,2]
[401214193,1768049443789,-226.31905987,0.00017127,2]
[401214194,1768049443799,-213.87423394,0.00017127,2]
[401214195,1768049443810,-177.21892515,0.00017127,2]
[401214196,1768049443819,-628.4,0.00017138,2]
[401214197,1768049443830,-260.75602621,0.00017145,2]
[401214198,1768049443840,-252.68743637,0.00017145,2]
[401214199,1768049443850,-188.04348929,0.00017145,2]
[401214200,1768049443860,-226.31905987,0.00017145,2]
[401214201,1768049443870,-213.87423394,0.00017145,2]
[401214202,1768049443881,-177.21892515,0.00017145,2]
[401214203,1768049443891,-222.85,0.00017148,2]
[401214204,1768049443901,-150.0,0.00017153,2]
[401214205,1768049443912,-150.0,0.0001716,2]
[401214206,1768049443923,-1000.0,0.00017161,2]
[401214207,1768049443933,-150.0,0.00017163,2]
[401214208,1768049443943,-260.75602621,0.00017164,2]
[401214209,1768049443953,-252.68743637,0.00017164,2]
[401214210,1768049443965,-188.04348929,0.00017164,2]
[401214211,1768049443975,-226.31905987,0.00017164,2]
[401214212,1768049443986,-213.87423394,0.00017164,2]
[401214213,1768049443996,-177.21892515,0.00017164,2]
[401214214,1768049444007,-150.0,0.00017169,2]
[401214215,1768049444017,-200.0,0.00017174,2]
[401214216,1768049444027,-260.75602621,0.00017182,2]
[401214217,1768049444037,-252.68743637,0.00017182,2]
[401214218,1768049444047,-188.04348929,0.00017182,2]
[401214219,1768049444058,-226.31905987,0.00017182,2]
[401214220,1768049444068,-213.87423394,0.00017182,2]
[401214221,1768049444079,-177.21892515,0.00017182,2]
[401214222,1768049444089,-150.0,0.00017188,2]
[401214223,1768049444099,-260.75602621,0.000172,2]
[401214224,1768049444110,-252.68743637,0.000172,2]
[401214225,1768049444120,-188.04348929,0.000172,2]
[401214226,1768049444132,-226.31905987,0.000172,2]
[401214227,1768049444142,-213.87423394,0.000172,2]
[401214228,1768049444153,-177.21892515,0.000172,2]
[401214229,1768049444164,-150.0,0.00017205,2]
[401214230,1768049444176,-628.4,0.00017216,2]
[401214231,1768049444186,-260.75602621,0.00017218,2]
[401214232,1768049444197,-252.68743637,0.00017218,2]
[401214233,1768049444207,-188.04348929,0.00017218,2]
[401214234,1768049444218,-226.31905987,0.00017218,2]
[401214235,1768049444228,-213.87423394,0.00017218,2]
[401214236,1768049444238,-177.21892515,0.00017218,2]
[401214237,1768049444248,-150.0,0.00017224,2]
[401214238,1768049444260,-172.27,0.00017233,2]
[401214239,1768049444269,-260.75602621,0.00017236,2]
[401214240,1768049444279,-252.68743637,0.00017236,2]
[401214241,1768049444290,-188.04348929,0.00017236,2]
[401214242,1768049444301,-226.31905987,0.00017236,2]
[401214243,1768049444311,-213.87423394,0.00017236,2]
[401214244,1768049444320,-177.21892515,0.00017236,2]
[401214245,1768049444331,-150.0,0.00017238,2]
[401214246,1768049444343,-150.0,0.00017247,2]
[401214247,1768049444353,-233.0,0.00017248,2]
[401214248,1768049444364,-159.16121496,0.00017252,2]
[401214249,1768049444374,-260.75602621,0.00017255,2]
[401214250,1768049444385,-252.68743637,0.00017255,2]
[401214251,1768049444395,-188.04348929,0.00017255,2]
[401214252,1768049444406,-226.31905987,0.00017255,2]
[401214253,1768049444417,-213.87423394,0.00017255,2]
[401214254,1768049444427,-177.21892515,0.00017255,2]
[401214255,1768049444437,-150.0,0.00017258,2]
[401214256,1768049444448,-150.0,0.00017259,2]
[401214257,1768049444458,-1000.0,0.00017263,2]
[401214258,1768049444469,-150.0,0.00017266,2]
[401214259,1768049444480,-260.75602621,0.00017273,2]
[401214260,1768049444491,-252.68743637,0.00017273,2]
[401214261,1768049444501,-188.04348929,0.00017273,2]
[401214262,1768049444512,-226.31905987,0.00017273,2]
[401214263,1768049444523,-213.87423394,0.00017273,2]
[401214264,1768049444532,-177.21892515,0.00017273,2]
[401214265,1768049444543,-1000.0,0.00017278,2]
[401214266,1768049444555,-150.0,0.0001728,2]
[401214267,1768049444566,-150.0,0.0001728,2]
[401214268,1768049444576,-150.0,0.00017288,2]
[401214269,1768049444586,-734.0,0.00017288,2]
[401214270,1768049444596,-260.75602621,0.00017291,2]
[401214271,1768049444606,-252.68743637,0.00017291,2]
[401214272,1768049444616,-188.04348929,0.00017291,2]
[401214273,1768049444627,-226.31905987,0.00017291,2]
[401214274,1768049444637,-213.87423394,0.00017291,2]
[401214275,1768049444647,-177.21892515,0.00017291,2]
[401214276,1768049444657,-150.0,0.00017294,2]
[401214277,1768049444667,-628.4,0.00017295,2]
[401214278,1768049444677,-734.0,0.00017298,2]
[401214279,1768049444688,-1000.0,0.00017307,2]
[401214280,1768049444698,-150.0,0.00017308,2]
[401214281,1768049444708,-260.75602621,0.00017309,2]
[401214282,1768049444718,-252.68743637,0.00017309,2]
[401214283,1768049444729,-188.04348929,0.00017309,2]
[401214284,1768049444740,-226.31905987,0.00017309,2]
[401214285,1768049444750,-213.87423394,0.00017309,2]
[401214286,1768049444760,-177.21892515,0.00017309,2]
[401214287,1768049444770,-150.0,0.00017325,2]
[401214288,1768049444780,-150.0,0.00017325,2]
[401214289,1768049444791,-260.75602621,0.00017327,2]
[401214290,1768049444801,-252.68743637,0.00017327,2]
[401214291,1768049444811,-188.04348929,0.00017327,2]
[401214292,1768049444822,-226.31905987,0.00017327,2]
[401214293,1768049444833,-213.87423394,0.00017327,2]
[401214294,1768049444843,-177.21892515,0.00017327,2]
[401214295,1768049444854,-150.0,0.00017329,2]
[401214296,1768049444865,-150.0,0.0001733,2]
[401214297,1768049444876,-1000.0,0.0001734,2]
[401214298,1768049444885,-260.75602621,0.00017345,2]
[401214299,1768049444896,-252.68743637,0.00017345,2]
[401214300,1768049444907,-188.04348929,0.00017345,2]
[401214301,1768049444918,-226.31905987,0.00017345,2]
[401214302,1768049444928,-213.87423394,0.00017345,2]
[401214303,1768049444938,-177.21892515,0.00017345,2]
[401214304,1768049444949,-260.75602621,0.00017364,2]
[401214305,1768049444958,-252.68743637,0.00017364,2]
[401214306,1768049444969,-188.04348929,0.00017364,2]
[401214307,1768049444980,-226.31905987,0.00017364,2]
[401214308,1768049444991,-213.87423394,0.00017364,2]
[401214309,1768049445001,-177.21892515,0.00017364,2]
[401214310,1768049445012,-1343.26,0.00017364,2]
[401214311,1768049445022,-150.0,0.00017365,2]
[401214312,1768049445032,-150.0,0.00017372,2]
[401214313,1768049445042,-628.4,0.00017373,2]
[401214314,1768049445052,-150.0,0.00017377,2]
[401214315,1768049445062,-260.75602621,0.00017382,2]
[401214316,1768049445072,-252.68743637,0.00017382,2]
[401214317,1768049445082,-188.04348929,0.00017382,2]
[401214318,1768049445092,-226.31905987,0.00017382,2]
[401214319,1768049445101,-213.87423394,0.00017382,2]
[401214320,1768049445110,-177.21892515,0.00017382,2]
[401214321,1768049445121,-187.78006525,0.00017385,2]
[401214322,1768049445131,-151.0,0.00017385,2]
[401214323,1768049445141,-514.84070869,0.00017385,2]
[401214324,1768049445151,-151.0,0.00017385,2]
[401214325,1768049445160,-197.9969081,0.00017385,2]
[401214326,1768049445170,-1000.0,0.00017395,2]
[401214327,1768049445180,-260.75602621,0.000174,2]
[401214328,1768049445191,-252.68743637,0.000174,2]
[401214329,1768049445201,-188.04348929,0.000174,2]
[401214330,1768049445211,-226.31905987,0.000174,2]
[401214331,1768049445222,-213.87423394,0.000174,2]
[401214332,1768049445232,-177.21892515,0.000174,2]
[401214333,1768049445243,-150.0,0.000174,2]
[401214334,1768049445254,-150.0,0.000174,2]
[401214335,1768049445264,-150.0,0.00017414,2]
[401214336,1768049445274,-260.75602621,0.00017418,2]
[401214337,1768049445284,-252.68743637,0.00017418,2]
[401214338,1768049445294,-188.04348929,0.00017418,2]
[401214339,1768049445305,-226.31905987,0.00017418,2]
[401214340,1768049445315,-213.87423394,0.00017418,2]
[401214341,1768049445325,-177.21892515,0.00017418,2]
[401214342,1768049445336,-1000.0,0.00017421,2]
[401214343,1768049445347,-150.0,0.00017435,2]
[401214344,1768049445358,-260.75602621,0.00017436,2]